bitfinex/quotes_ETHUSD_20220109
["timestamp","ask_amount","ask_price","bid_price","bid_amount"]
[1641745010725,2.74002142,3096.7,3096.6,0.80741]
[1641745010926,1.42303932,3096.7,3096.6,0.80741]
[1641745011224,4.17339386,3096.7,3096.6,0.80741]
[1641745011826,1.42303932,3096.7,3096.6,0.80741]
[1641745012429,4.17339386,3096.7,3096.6,0.80741]
[1641745013968,4.17339386,3096.7,3096.5,0.08810951]
[1641745014367,4.17339386,3096.7,3096.5,0.89558951]
[1641745014570,1.42303932,3096.7,3096.5,0.89558951]
[1641745016069,1.42303932,3096.7,3096.5,0.81486951]
[1641745017135,1.42303932,3096.7,3096.6,0.00104861]
[1641745017629,2.23057972,3096.7,3096.6,0.00104861]
[1641745018231,2.23057972,3096.7,3096.5,0.00738951]
[1641745018630,2.23057972,3096.7,3096.4,0.00795793]
[1641745018631,3.36910749,3096.7,3096.4,0.00795793]
[1641745019033,2.7505177,3096.6,3096.4,0.30795793]
[1641745019331,2.7505177,3096.6,3096.4,0.00795793]
[1641745019734,2.7505177,3096.6,3096.2,0.00909478]
[1641745022071,2.7005177,3096.6,3096.2,0.00909478]
[1641745022467,3.36913509,3096.7,3096.2,0.00909478]
[1641745023068,3.36913509,3096.7,3096.2,0.81665478]
[1641745023269,1.42303932,3096.7,3096.2,0.81665478]
[1641745023470,1.42303932,3096.7,3096.3,0.00852635]
[1641745023869,1.42303932,3096.7,3096.2,0.08981478]
[1641745024070,1.42303932,3096.7,3096.3,0.00852635]
[1641745024416,1.42303932,3096.7,3096.4,1.38543808]
[1641745024619,1.42303932,3096.7,3096.4,2.19284808]
[1641745024821,1.42303932,3096.7,3096.5,0.80741]
[1641745025019,3.27924281,3097.3,3096.5,0.80741]
[1641745025220,2.47184831,3097.3,3096.6,2.9761206]
[1641745025419,1.22824831,3097.3,3096.7,0.24932899]
[1641745025618,1.22824831,3097.3,3096.8,0.465]
[1641745025817,1.22824831,3097.3,3096.9,0.08071]
[1641745026018,1.22824831,3097.3,3097.0,3.69378]
[1641745026220,1.56483131,3097.2,3097.1,7.08071]
[1641745026422,1.22824831,3097.3,3097.1,0.54968897]
[1641745026619,5.1031,3097.6,3097.1,0.54968897]
[1641745026820,1.3134334,3097.7,3097.1,0.54968897]
[1641745026821,1.3134334,3097.7,3097.2,0.00341054]
[1641745027021,1.2634334,3097.7,3097.2,0.46841054]
[1641745027220,1.2634334,3097.7,3097.3,0.80727]
[1641745027425,6.81763897,3097.6,3097.1,1.24046521]
[1641745027621,6.81934424,3097.6,3097.2,0.465]
[1641745027822,1.51934424,3097.6,3097.2,0.465]
[1641745028272,1.51934424,3097.6,3097.3,0.80727]
[1641745029668,1.51934424,3097.6,3097.3,1.27227]
[1641745030871,1.08598608,3097.5,3097.3,1.27227]
[1641745032123,1.08598608,3097.5,3097.3,1.27331837]
[1641745033122,1.08598608,3097.5,3097.3,1.27227]
[1641745034022,1.08598608,3097.5,3097.3,1.27331837]
[1641745035122,1.08598608,3097.5,3097.3,1.27227]
[1641745035971,1.08598608,3097.5,3097.3,3.27227]
[1641745036371,1.22824831,3097.5,3097.3,3.27227]
[1641745036973,1.22824831,3097.5,3097.4,2.41377973]
[1641745037172,1.22824831,3097.5,3097.4,1.61425]
[1641745037374,1.22824831,3097.5,3097.4,7.27791276]
[1641745037572,0.00170527,3097.6,3097.5,29.22679245]
[1641745037775,0.00170527,3097.6,3097.5,30.57943245]
[1641745037976,0.00170527,3097.6,3097.5,31.57943245]
[1641745038172,1.22824831,3097.8,3097.6,14.64774755]
[1641745038373,1.22824831,3097.8,3097.7,9.34569]
[1641745038673,0.00113685,3097.8,3097.7,10.64569]
[1641745039921,0.00113685,3097.8,3097.7,11.45262]
[1641745040122,0.00113685,3097.8,3097.7,2.65262]
[1641745040320,0.00113685,3097.8,3097.7,5.12993935]
[1641745041124,0.00113685,3097.8,3097.7,9.17993935]
[1641745041522,1.18505156,3098.5,3098.1,0.8069]
[1641745041820,1.18505156,3098.5,3098.2,0.465]
[1641745041821,0.00284212,3098.3,3098.2,0.465]
[1641745042321,1.4809069,3098.3,3098.2,0.465]
[1641745043179,8.6309069,3098.3,3098.2,0.465]
[1641745043573,11.04702069,3098.3,3098.2,0.465]
[1641745044174,13.79632618,3098.3,3098.2,0.465]
[1641745044373,13.79632618,3098.3,3097.7,2.0]
[1641745044573,0.8072513,3098.1,3097.7,2.0]
[1641745044776,2.58198365,3098.0,3097.7,2.0]
[1641745044974,2.5831205,3098.0,3097.7,2.0]
[1641745045374,1.31852857,3097.9,3097.7,2.0]
[1641745045574,8.24971526,3097.8,3097.7,2.0]
[1641745045975,10.58588285,3097.8,3097.7,2.0]
[1641745046375,11.58588285,3097.8,3097.7,2.0]
[1641745046678,9.24971526,3097.8,3097.7,2.0]
[1641745046920,10.58957996,3097.8,3097.7,2.0]
[1641745047325,13.33888545,3097.8,3097.7,2.0]
[1641745047522,13.33888545,3097.8,3097.7,1.06663873]
[1641745048624,6.58888545,3097.8,3097.7,1.06663873]
[1641745048823,4.24351166,3097.8,3097.7,1.06663873]
[1641745049124,5.24351166,3097.8,3097.7,1.06663873]
[1641745049523,7.56899038,3097.8,3097.7,1.06663873]
[1641745049729,7.64968038,3097.8,3097.7,1.06663873]
[1641745049926,20.24968038,3097.8,3097.7,1.06663873]
[1641745050769,26.00666215,3097.8,3097.7,1.06663873]
[1641745051369,24.37612581,3097.8,3097.7,3.06663873]
[1641745051570,20.24968038,3097.8,3097.7,3.06663873]
[1641745051771,20.24968038,3097.8,3097.7,2.15099858]
[1641745051970,21.05714038,3097.8,3097.7,2.15099858]
[1641745052170,21.05714038,3097.8,3097.7,0.91564015]
[1641745052371,25.18358581,3097.8,3097.7,0.91564015]
[1641745052769,25.18358581,3097.8,3097.3,2.0]
[1641745052770,14.55,3097.7,3097.3,2.0]
[1641745052972,1.20771662,3097.4,3097.3,2.0]
[1641745053172,3.56128697,3097.4,3097.3,2.0]
[1641745053369,3.56128697,3097.4,3097.3,2.00284212]
[1641745053573,1.20771662,3097.4,3097.3,2.00284212]
[1641745053770,8.53038995,3097.4,3097.3,2.00284212]
[1641745053970,3.98038995,3097.4,3097.3,2.00284212]
[1641745057937,3.98038995,3097.4,3097.3,2.60284212]
[1641745058173,2.74930549,3097.4,3097.3,2.00284212]
[1641745058667,3.8724409,3097.9,3097.3,2.00284212]
[1641745059068,3.8724409,3097.9,3097.4,0.0022737]
[1641745059670,2.74930549,3097.8,3097.4,0.0022737]
[1641745059969,2.74930549,3097.8,3097.5,0.80724]
[1641745060371,2.74930549,3097.8,3097.6,0.00113685]
[1641745060774,2.74930549,3097.8,3097.4,0.0022737]
[1641745063827,2.74930549,3097.8,3097.4,0.8095237]
[1641745064230,2.74930549,3097.8,3097.5,0.00170527]
[1641745064629,2.74930549,3097.8,3097.4,0.0022737]
[1641745065528,2.74930549,3097.8,3097.5,0.80724]
[1641745065779,2.74930549,3097.8,3097.4,0.0022737]
[1641745065976,2.74930549,3097.8,3097.6,0.00113685]
[1641745066173,2.74930549,3097.8,3097.5,0.00170527]
[1641745066372,2.74930549,3097.8,3097.4,0.0022737]
[1641745067376,2.74930549,3097.8,3097.6,1.61427]
[1641745067575,2.74930549,3097.8,3097.7,11.165]
[1641745067774,2.74930549,3097.8,3097.7,11.465]
[1641745067973,2.69930549,3097.8,3097.7,12.465]
[1641745068374,1.23222131,3098.0,3097.8,8.6]
[1641745068574,1.23222131,3098.0,3097.9,7.68390742]
[1641745068775,1.23222131,3098.0,3097.9,7.98390742]
[1641745068976,0.00113685,3098.0,3097.9,9.00812354]
[1641745069824,0.00113685,3098.0,3097.9,6.180393]
[1641745070231,0.00113685,3098.0,3097.9,1.5719]
[1641745072625,0.00113685,3098.0,3097.9,1.2719]
[1641745073025,0.00113685,3098.0,3097.6,0.80721]
[1641745073671,0.00113685,3098.0,3097.6,2.25145935]
[1641745073872,0.00113685,3098.0,3097.7,0.465]
[1641745074874,1.43516228,3098.1,3097.8,0.80707]
[1641745075072,1.43516228,3098.1,3097.9,0.465]
[1641745077122,1.43516228,3098.1,3097.4,1.6973137]
[1641745077323,1.43516228,3098.1,3097.5,0.465]
[1641745077523,1.43516228,3098.1,3097.5,0.46670527]
[1641745077723,1.43516228,3098.1,3097.6,0.00113685]
[1641745077926,1.43516228,3098.1,3097.7,1.27217]
[1641745078126,1.43516228,3098.1,3097.7,2.40415765]
[1641745078523,1.43516228,3098.1,3097.9,0.00104817]
[1641745078724,1.43516228,3098.1,3097.9,0.46604817]
[1641745079125,1.43516228,3098.1,3098.0,0.80711]
[1641745079324,1.43516228,3098.1,3097.9,0.46604817]
[1641745079526,1.43686755,3098.1,3097.9,0.465]
[1641745079924,1.43686755,3098.1,3097.6,1.61537685]
[1641745080775,1.43686755,3098.1,3097.9,0.00104817]
[1641745081377,0.00170527,3098.1,3097.9,0.00104817]
[1641745081776,0.00170527,3098.1,3097.8,1.61414]
[1641745082178,1.08278973,3098.4,3097.8,1.61414]
[1641745082574,1.28472327,3098.2,3097.9,0.80826685]
[1641745086737,0.00113685,3098.3,3097.9,0.80826685]
[1641745086944,0.00113685,3098.3,3098.0,3.0275042]
[1641745087140,0.00113685,3098.3,3098.1,0.80699]
[1641745087442,0.00113685,3098.3,3098.1,1.27199]
[1641745087839,0.00113685,3098.3,3098.2,5.70965864]
[1641745088041,0.00113685,3098.3,3098.2,1.55965864]
[1641745088474,0.00113685,3098.3,3098.2,3.98889211]
[1641745088677,0.00113685,3098.3,3098.2,1.55965864]
[1641745089874,0.00113685,3098.3,3098.2,3.98635902]
[1641745090180,0.00113685,3098.3,3098.2,1.55965864]
[1641745090875,0.00113685,3098.3,3098.2,4.02963316]
[1641745091076,0.00113685,3098.3,3098.2,5.09463316]
[1641745091276,0.00113685,3098.3,3098.2,6.14122262]
[1641745091477,2.74920134,3098.8,3098.3,10.7]
[1641745091775,0.00227369,3098.7,3098.5,1.6135103]
[1641745092027,0.00227369,3098.7,3098.6,11.865]
[1641745092223,2.74920134,3098.8,3098.7,10.90089147]
[1641745092424,2.74920134,3098.8,3098.7,17.61625139]
[1641745092623,1.64144595,3099.4,3099.1,0.80664]
[1641745092827,1.64144595,3099.4,3099.2,0.465]
[1641745093024,0.00284212,3099.3,3099.2,0.465]
[1641745093626,0.00284212,3099.3,3099.2,1.67814418]
[1641745093824,0.00284212,3099.3,3099.2,2.90913301]
[1641745094025,0.00284212,3099.3,3099.2,4.52242301]
[1641745094829,0.00284212,3099.3,3099.2,32.71245307]
[1641745097271,0.00284212,3099.3,3099.2,31.48146424]
[1641745097472,0.00284212,3099.3,3099.2,27.33653725]
[1641745097672,0.00284212,3099.3,3099.2,27.80153725]
[1641745098774,1.08142419,3099.7,3099.2,29.41482725]
[1641745099176,0.00170527,3099.6,3099.2,29.41482725]
[1641745099635,0.00113685,3099.5,3099.2,29.41482725]
[1641745099833,0.00113685,3099.5,3099.2,30.22153725]
[1641745100132,1.64144595,3099.7,3099.5,0.80671]
[1641745100333,1.64144595,3099.7,3099.5,1.27171]
[1641745100935,1.64428807,3099.8,3099.5,1.27171]
[1641745101334,0.00227369,3099.7,3099.5,1.27171]
[1641745102437,1.45831202,3099.9,3099.5,1.27171]
[1641745105890,5.24874595,3100.1,3099.5,3.67960284]
[1641745106088,1.64144595,3100.1,3099.5,1.27171]
[1641745106285,0.00170527,3100.0,3099.5,1.27171]
[1641745106486,4.12644543,3100.2,3099.5,1.27171]
[1641745106686,0.00113685,3099.9,3099.7,0.80658]
[1641745107125,0.00113685,3099.9,3099.8,1.25665765]
[1641745108430,3.97758228,3100.2,3099.8,1.72165765]
[1641745108626,3.97758228,3100.2,3100.0,0.80653]
[1641745109427,24.85341054,3100.3,3100.0,0.80653]
[1641745110026,24.85341054,3100.3,3099.9,0.00170527]
[1641745110428,26.07973207,3100.3,3099.9,0.00170527]
[1641745110678,26.07973207,3100.3,3099.7,0.00284212]
[1641745110679,1.14556508,3100.0,3099.7,0.00284212]
[1641745110873,1.54052132,3099.9,3099.7,0.00388968]
[1641745111276,1.54052132,3099.9,3099.8,0.00227369]
[1641745112275,1.54052132,3099.9,3099.7,0.00284212]
[1641745112875,2.74831251,3099.8,3099.7,0.00284212]
[1641745113075,6.75,3099.7,3099.6,1.56605212]
[1641745113277,2.74831251,3099.8,3099.5,0.465]
[1641745115933,2.74831251,3099.8,3099.5,1.27171]
[1641745117934,5.95,3099.7,3099.2,25.67667555]
[1641745118179,5.95,3099.7,3099.3,0.465]
[1641745118373,2.74831251,3099.8,3099.3,0.46727369]
[1641745118773,2.74831251,3099.8,3099.5,0.80671]
[1641745118978,2.74831251,3099.6,3099.5,0.80671]
[1641745119175,2.74831251,3099.6,3099.5,0.8012009]
[1641745119376,2.74831251,3099.6,3099.5,0.80233774]
[1641745119578,2.74831251,3099.7,3099.5,0.80233774]
[1641745119978,2.74831251,3099.6,3099.5,0.80233774]
[1641745120578,2.74831251,3099.8,3099.5,0.80233774]
[1641745123940,2.74831251,3099.8,3099.5,0.80338537]
[1641745125037,2.74831251,3099.8,3099.5,0.80233774]
[1641745125692,2.74831251,3099.8,3099.5,1.92942908]
[1641745126083,2.74831251,3099.8,3099.5,1.93047671]
[1641745126785,2.74831251,3099.8,3099.5,2.73711671]
[1641745126982,2.74831251,3099.8,3099.6,0.80664]
[1641745127483,6.57831321,3100.2,3099.6,0.80664]
[1641745127484,1.22632153,3099.9,3099.6,0.80664]
[1641745128085,1.49928788,3099.8,3099.6,0.80664]
[1641745128886,2.74831251,3099.7,3099.6,0.80664]
[1641745131629,2.68470818,3099.7,3099.6,0.80664]
[1641745133972,3.91102971,3099.7,3099.6,0.80664]
[1641745135774,1.22632153,3099.7,3099.6,0.80664]
[1641745136375,1.63528121,3099.8,3099.6,0.80664]
[1641745137431,1.63528121,3099.8,3099.7,1.1160461]
[1641745138827,1.63528121,3099.8,3099.6,0.80664]
[1641745139027,1.63528121,3099.8,3099.6,0.80768759]
[1641745139431,3.75,3099.7,3099.2,29.98539468]
[1641745139634,3.75,3099.7,3099.4,0.465]
[1641745139635,0.00113684,3099.7,3099.4,0.465]
[1641745139831,0.00113684,3099.7,3099.5,2.41995]
[1641745140131,1.23456426,3099.6,3099.5,2.41995]
[1641745140974,1.2357011,3099.7,3099.6,1.43191641]
[1641745141174,1.2357011,3099.7,3099.6,2.23856641]
[1641745141575,1.2357011,3099.7,3099.6,0.80665]
[1641745142874,1.2357011,3099.7,3099.6,2.22040418]
[1641745143676,1.2357011,3099.7,3099.6,0.80665]
[1641745145426,1.2357011,3099.7,3099.6,2.36623165]
[1641745146528,1.2357011,3099.7,3099.6,0.80665]
[1641745148179,1.2357011,3099.7,3099.6,2.2688788]
[1641745148774,1.1857011,3099.7,3099.6,0.80665]
[1641745150577,1.1857011,3099.7,3099.4,0.465]
[1641745150777,1.1857011,3099.7,3099.3,0.00113685]
[1641745150778,0.8068184,3099.7,3099.3,0.00113685]
[1641745150976,1.6136984,3099.7,3099.5,0.00113685]
[1641745151176,1.6136984,3099.7,3099.1,0.00341054]
[1641745151177,0.80688,3099.7,3099.1,0.00341054]
[1641745151376,3.24905121,3099.7,3099.1,0.00341054]
[1641745151779,3.24905121,3099.7,3099.1,0.81024054]
[1641745151780,0.8068584,3099.4,3099.1,0.81024054]
[1641745152227,0.8068584,3099.4,3099.2,0.00284211]
[1641745152427,4.38383474,3099.6,3099.2,2.4306077]
[1641745152628,4.38383474,3099.6,3099.0,1.8569484]
[1641745152831,0.00170527,3099.5,3099.2,1.61328]
[1641745153028,2.74855353,3099.3,3099.2,2.41992]
[1641745153430,2.74855353,3099.3,3099.2,4.5426278]
[1641745153628,2.74855353,3099.3,3099.2,5.0076278]
[1641745154030,0.00113684,3099.4,3099.2,5.0076278]
[1641745154230,0.00113684,3099.4,3099.3,2.39477068]
[1641745154431,0.00113684,3099.4,3099.3,2.85977068]
[1641745155880,0.00113684,3099.4,3099.3,2.82037438]
[1641745156280,0.00113684,3099.4,3099.3,0.465]
[1641745157887,2.69969037,3100.0,3099.7,1.26014677]
[1641745158189,0.80956122,3099.9,3099.7,1.26014677]
[1641745158385,0.00284212,3099.9,3099.7,1.26014677]
[1641745158586,0.0022737,3099.8,3099.7,1.26014677]
[1641745158986,0.0022737,3099.8,3099.7,2.06683677]
[1641745159428,0.0022737,3099.8,3099.6,1.32510971]
[1641745159429,6.55,3099.7,3099.6,1.32510971]
[1641745159630,0.0022737,3099.8,3099.6,1.32510971]
[1641745159831,3.75170527,3099.7,3099.6,1.32510971]
[1641745160031,0.00170527,3099.7,3099.6,1.32510971]
[1641745160230,0.00170527,3099.7,3099.6,2.13176971]
[1641745160630,0.00170527,3099.7,3099.6,3.12982753]
[1641745161031,0.00170527,3099.7,3099.6,6.13881563]
[1641745161632,0.00170527,3099.7,3099.6,2.59676971]
[1641745162834,0.00170527,3099.7,3099.6,3.65304901]
[1641745167231,0.00170527,3099.7,3099.6,2.59676971]
[1641745169236,0.00170527,3099.7,3099.6,2.59775962]
[1641745169834,0.00170527,3099.7,3099.6,1.27264991]
[1641745170237,0.00170527,3099.7,3099.6,1.27166]
[1641745171376,0.00170527,3099.7,3099.6,1.27264991]
[1641745172276,0.00170527,3099.7,3099.6,1.27166]
[1641745175426,1.14653482,3099.7,3099.6,1.27166]
[1641745176334,0.00170527,3099.7,3099.6,1.27166]
[1641745177730,0.00170527,3099.7,3099.6,2.57101236]
[1641745179080,2.74971668,3099.7,3099.6,2.57101236]
[1641745179778,0.00170527,3099.7,3099.6,2.57101236]
[1641745183454,0.00170527,3099.7,3099.6,1.27166]
[1641745183855,6.15170527,3099.7,3099.3,1.61343]
[1641745184059,0.00170527,3099.7,3099.4,0.465]
[1641745184253,0.00113685,3099.6,3099.4,0.465]
[1641745184755,2.82865141,3100.0,3099.5,0.80666]
[1641745184756,1.23674696,3099.8,3099.5,0.80666]
[1641745184957,1.23674696,3099.8,3099.6,0.465]
[1641745185156,0.00170527,3099.7,3099.6,0.465]
[1641745185983,0.00170527,3099.7,3099.6,1.27167]
[1641745186385,2.74971668,3099.7,3099.6,1.27167]
[1641745186982,0.00170527,3099.7,3099.6,1.27167]
[1641745188784,2.74971668,3099.7,3099.6,1.27167]
[1641745189433,0.00170527,3099.7,3099.6,1.27167]
[1641745197038,1.13617853,3099.8,3099.6,1.27167]
[1641745197241,2.74801141,3099.7,3099.6,1.27167]
[1641745197637,3.88418994,3099.8,3099.6,1.27167]
[1641745198438,1.13617853,3099.8,3099.6,1.27167]
[1641745200236,3.88418994,3099.8,3099.6,1.27167]
[1641745200706,1.13617853,3099.8,3099.6,1.27167]
[1641745201393,1.13617853,3099.8,3099.6,2.87167]
[1641745202196,1.13617853,3099.8,3099.7,12.09156029]
[1641745202395,1.13617853,3099.8,3099.7,12.55656029]
[1641745202594,2.74801141,3099.9,3099.7,20.17492749]
[1641745202796,2.74801141,3100.1,3099.9,0.80636]
[1641745203000,2.74801141,3100.1,3100.0,0.465]
[1641745203997,2.74801141,3100.2,3100.0,0.465]
[1641745204199,2.74801141,3100.2,3100.0,1.27136]
[1641745204435,2.75085353,3100.2,3100.0,1.27136]
[1641745204637,2.75085353,3100.2,3100.0,2.87136]
[1641745205238,2.75085353,3100.2,3100.0,1.87136]
[1641745205638,2.75085353,3100.2,3100.0,3.6777]
[1641745205840,2.75085353,3100.2,3100.0,4.4840199]
[1641745206841,2.75085353,3100.2,3100.0,2.0777]
[1641745207239,2.75085353,3100.2,3100.0,2.15834]
[1641745208290,2.75085353,3100.2,3100.1,29.10839804]
[1641745208492,2.75085353,3100.2,3100.1,29.57339804]
[1641745208789,2.75085353,3100.2,3100.1,26.64254907]
[1641745210097,13.98955938,3100.2,3100.1,0.465]
[1641745210394,13.98955938,3100.2,3099.8,0.80666]
[1641745210591,5.03955938,3100.2,3099.8,0.80666]
[1641745210793,0.0022737,3100.1,3099.8,0.80666]
[1641745210992,1.2469373,3100.0,3099.8,0.80666]
[1641745211191,1.24864257,3100.0,3099.8,0.80666]
[1641745211393,0.00113685,3099.9,3099.8,0.80666]
[1641745211792,2.74914826,3099.9,3099.8,0.80666]
[1641745213436,0.00113685,3099.9,3099.8,1.27166]
[1641745213635,2.74914826,3099.9,3099.8,1.27166]
[1641745214337,4.21782875,3099.9,3099.8,1.27166]
[1641745214538,1.46981734,3099.9,3099.8,1.27166]
[1641745215138,4.21782875,3099.9,3099.8,1.27166]
[1641745215342,2.74914826,3099.9,3099.8,1.27166]
[1641745215540,0.00113685,3099.9,3099.8,1.27166]
[1641745216185,0.00113685,3099.9,3099.8,1.27264991]
[1641745216386,0.00113685,3099.9,3099.8,2.68814696]
[1641745217388,0.00113685,3099.9,3099.8,2.68715705]
[1641745217988,0.00113685,3099.9,3099.8,2.68814689]
[1641745218989,0.00113685,3099.9,3099.8,2.38715705]
[1641745219443,0.00113685,3099.9,3099.8,1.27166]
[1641745220038,0.00113685,3099.9,3099.8,1.3523]
[1641745220340,2.74801141,3100.2,3099.8,1.3523]
[1641745220341,0.50778751,3100.2,3100.0,35.35226932]
[1641745220543,0.50778751,3100.2,3100.1,1.35205]
[1641745220942,24.85341054,3100.3,3100.1,1.35205]
[1641745221140,24.85341054,3100.3,3100.1,1.27141]
[1641745221341,26.05109419,3100.3,3100.1,1.27141]
[1641745224190,26.05109419,3100.3,3100.1,1.57141]
[1641745224488,5.92154845,3100.2,3100.1,1.27141]
[1641745225388,5.92154845,3100.2,3100.1,0.465]
[1641745227036,1.27154845,3100.2,3100.1,0.465]
[1641745227433,3.57732312,3100.2,3100.1,0.465]
[1641745227737,1.27154845,3100.2,3100.1,0.465]
[1641745228134,3.54679419,3100.2,3100.1,0.465]
[1641745228336,3.64802478,3100.2,3100.1,0.465]
[1641745228537,3.64802478,3100.2,3098.7,2.35609992]
[1641745228538,2.07807,3099.5,3098.7,2.35609992]
[1641745228735,2.44978847,3099.4,3098.7,2.35609992]
[1641745228934,2.44978847,3099.4,3099.0,0.00459341]
[1641745228935,14.5,3099.2,3099.0,0.00459341]
[1641745229135,2.26195634,3099.3,3098.6,3.55266067]
[1641745229136,16.93710722,3099.1,3098.6,3.55266067]
[1641745229533,16.93710722,3099.1,3098.7,0.00227369]
[1641745229735,16.93710722,3099.1,3097.8,0.465]
[1641745229736,14.5,3098.9,3097.8,0.465]
[1641745229935,1.51605699,3098.2,3097.8,0.465]
[1641745230134,1.51605699,3098.2,3097.9,0.00454739]
[1641745230335,0.08068,3098.9,3098.0,1.27205]
[1641745230534,0.00170527,3099.0,3098.0,1.27205]
[1641745230783,0.00170527,3099.0,3098.1,0.00341054]
[1641745230985,0.00113685,3098.9,3098.2,0.465]
[1641745231188,0.00113685,3098.9,3098.6,1.44652906]
[1641745231482,1.39205118,3099.1,3098.7,0.80687]
[1641745231483,1.39432487,3099.1,3098.7,0.80687]
[1641745231882,0.00170527,3099.0,3098.7,0.80687]
[1641745232281,0.00113685,3098.9,3098.7,0.80687]
[1641745232681,0.00170527,3099.0,3098.7,0.80687]
[1641745233082,0.00113685,3098.9,3098.7,0.80687]
[1641745233481,0.00170527,3099.0,3098.7,0.80687]
[1641745233884,0.00113685,3098.9,3098.7,0.80687]
[1641745234086,0.00113685,3098.9,3098.8,35.60276443]
[1641745234286,0.00341054,3099.3,3098.8,35.59217317]
[1641745234541,0.00113685,3098.9,3098.8,35.59217317]
[1641745234741,2.07807,3099.5,3098.9,1.24886892]
[1641745234742,0.00284212,3099.2,3098.9,1.24886892]
[1641745234941,2.07807,3099.5,3099.0,2.83274894]
[1641745235142,2.07807,3099.5,3099.0,5.25288894]
[1641745235343,0.00397896,3099.4,3099.0,5.25288894]
[1641745235742,0.00341054,3099.3,3099.0,5.25288894]
[1641745235942,0.00341054,3099.3,3099.0,2.88514]
[1641745236143,2.07807,3099.5,3099.0,2.07844]
[1641745236144,0.00284212,3099.2,3099.0,2.07844]
[1641745236541,1.12476659,3099.4,3099.0,2.07844]
[1641745236542,0.00227369,3099.1,3099.0,2.07844]
[1641745236942,0.00227369,3099.1,3099.0,2.37844]
[1641745237142,0.00227369,3099.1,3099.0,3.67844]
[1641745237542,0.00227369,3099.1,3099.0,2.37844]
[1641745237742,0.00227369,3099.1,3099.0,3.67844]
[1641745237943,0.00227369,3099.1,3099.0,13.37844]
[1641745238181,2.07807,3099.5,3099.1,7.76807404]
[1641745238386,2.07807,3099.5,3099.3,0.80653]
[1641745238584,2.07807,3099.5,3099.4,2.07817]
[1641745238991,2.0803437,3099.5,3099.4,2.07817]
[1641745243433,2.0803437,3099.5,3099.4,3.63651161]
[1641745243635,2.0803437,3099.5,3099.4,3.33651161]
[1641745245235,2.0803437,3099.5,3099.4,5.69128734]
[1641745245785,2.0803437,3099.5,3099.4,3.33651161]
[1641745246183,2.0803437,3099.5,3099.4,3.33750158]
[1641745246587,2.0303437,3099.5,3099.4,3.33750158]
[1641745247185,0.00560335,3100.1,3099.5,14.52807]
[1641745247386,0.00560335,3100.1,3099.6,3.68004922]
[1641745247586,0.00284211,3100.0,3099.8,0.8064]
[1641745247787,0.00284211,3100.0,3099.9,0.465]
[1641745247989,0.00560335,3100.1,3099.9,0.465]
[1641745248186,24.85341054,3100.3,3099.9,0.465]
[1641745248386,24.85341054,3100.3,3100.0,1.4593628]
[1641745248585,24.85341054,3100.3,3100.1,1.27144]
[1641745248586,0.00397896,3100.2,3100.1,1.27144]
[1641745248986,2.75141254,3100.2,3100.1,1.27144]
[1641745251740,2.75141254,3100.2,3100.1,2.87144]
[1641745251937,2.75141254,3100.2,3100.1,5.23060431]
[1641745252137,0.00397896,3100.2,3100.1,5.23060431]
[1641745252338,0.00397896,3100.2,3100.1,2.87144]
[1641745254898,0.00397896,3100.2,3100.1,5.23160699]
[1641745257138,0.00397896,3100.2,3100.1,2.87144]
[1641745257541,24.8073895,3100.3,3100.1,2.87144]
[1641745258740,24.8073895,3100.3,3100.1,6.0453203]
[1641745258940,24.8073895,3100.3,3100.2,2.35966528]
[1641745259141,24.8073895,3100.3,3100.2,3.82466528]
[1641745259341,18.3574395,3100.3,3100.2,9.57466528]
[1641745259543,18.3574395,3100.3,3100.2,9.6549395]
[1641745259939,11.9079995,3100.3,3100.2,9.6549395]
[1641745260346,5.4585395,3100.3,3100.2,15.2049395]
[1641745260542,5.4585395,3100.3,3100.2,13.1549395]
[1641745260986,0.00560335,3100.8,3100.3,8.25]
[1641745261198,0.00560335,3100.8,3100.6,0.80618]
[1641745261389,0.00560335,3100.8,3100.7,9.17721726]
[1641745261687,0.00901389,3100.8,3100.7,3.52721726]
[1641745261886,0.00901389,3100.8,3100.7,4.52721726]
[1641745262288,0.00341054,3100.8,3100.7,4.52721726]
[1641745262890,0.00341054,3100.8,3100.7,5.99329347]
[1641745263094,0.00560335,3101.4,3100.8,13.9]
[1641745263392,2.749759,3101.3,3101.2,5.812]
[1641745263592,1.23278154,3101.6,3101.3,6.85]
[1641745263795,1.23278154,3101.6,3101.4,0.465]
[1641745263992,0.00113685,3101.5,3101.4,3.83391662]
[1641745264192,0.00113685,3101.5,3101.4,4.83391662]
[1641745264447,0.00113685,3101.5,3101.4,7.57043468]
[1641745265337,1.23278154,3102.2,3101.7,0.80588]
[1641745265540,1.23278154,3102.2,3101.8,5.29655076]
[1641745265737,0.00341054,3102.1,3102.0,0.80586]
[1641745265938,0.00341054,3102.1,3102.0,1.27086]
[1641745266337,0.00341054,3102.1,3102.0,3.82783848]
[1641745266739,0.00341054,3102.1,3102.0,2.42943861]
[1641745267141,0.00341054,3102.1,3102.0,0.465]
[1641745267437,0.00341054,3102.1,3102.0,0.765]
[1641745267636,0.00341054,3102.1,3102.0,2.81910611]
[1641745267836,0.00341054,3102.1,3102.0,3.92496611]
[1641745268037,0.00341054,3102.1,3102.0,6.39526914]
[1641745268487,0.9311203,3102.6,3102.3,0.8057022]
[1641745268688,0.9311203,3102.6,3102.4,2.97101486]
[1641745268888,2.02807,3102.8,3102.6,5.45]
[1641745269088,1.63528121,3103.0,3102.7,4.45981174]
[1641745269289,1.63528121,3103.0,3102.9,37.67096292]
[1641745269488,3.9077,3103.7,3103.2,1.15411943]
[1641745269489,6.11,3103.3,3103.2,1.15411943]
[1641745269692,6.06,3103.3,3103.2,1.61911943]
[1641745269888,6.06,3103.3,3103.2,2.21911943]
[1641745270288,1.63528121,3103.4,3103.2,2.21911943]
[1641745270689,5.55388121,3104.1,3103.2,2.21911943]
[1641745270891,1.63528121,3104.1,3103.2,2.21911943]
[1641745271092,0.0073895,3103.4,3103.3,0.80552]
[1641745271291,0.0073895,3103.4,3103.3,1.27052]
[1641745271693,0.0073895,3103.4,3103.3,0.465]
[1641745275241,1.63528121,3104.3,3103.8,1.11392651]
[1641745275442,1.63528121,3104.3,3103.8,1.57892651]
[1641745275689,6.20284212,3103.9,3103.8,0.465]
[1641745276290,6.20284212,3103.9,3103.8,0.46598857]
[1641745276495,6.15284212,3103.9,3103.8,0.46598857]
[1641745276691,6.15284212,3103.9,3103.8,0.46697714]
[1641745277092,6.15284212,3103.9,3103.2,1.61104]
[1641745277292,6.15284212,3103.9,3103.7,1.35321692]
[1641745277495,6.15284212,3103.9,3103.8,0.465]